[Event "1st Semana Santa Torrevieja 2022"]
[Site "Torrevieja Alicante"]
[Date "2022.04.15"]
[Round "5.8"]
[White "Vasquez Schroeder, Rodrigo"]
[Black "Rasmussen, Karsten"]
[Result "1/2-1/2"]
[ECO "B12"]
[WhiteElo "2493"]
[BlackElo "2412"]
[Annotator "TA"]
[PlyCount "132"]
[EventDate "2022.04.12"]
[EventType "swiss"]
[EventCountry "ESP"]
[SourceTitle "playchess.com"]
[Source "ChessBase"]
[SourceQuality "1"]
[TimeControl "5400+30"]

{[%evp 9,132,25,18,0,-4,0,0,-13,-13,-8,0,0,0,-7,-11,-21,0,-21,-20,-15,-22,-15,-20,-20,-15,-17,-22,-28,-14,-20,0,0,-7,-44,-39,-42,-26,-27,-10,-11,-11,-33,-18,-41,0,0,7,0,23,0,0,0,52,0,0,0,0,0,0,0,0,0,0,0,0,0,15,17,17,17,17,17,17,17,19,16,23,0,0,0,12,0,1540,0,0,0,0,0,0,0,0,0,0,0,0,0,0,0,0,0,0,0,0,0,0,0,0,0,0,0,0,0,0,0,0,0,0,-28000,-28000,-28000,-28000,-28000,-28000,-28000,-28000]} 1. e4 {[%emt 0:00:07]} c6 {[%emt 0:00:06]} 2. d4 {[%emt 0:00:30]} d5 {[%emt 0:00:30]} 3. e5 {[%emt 0:00:30]} c5 {[%emt 0:00:08]} 4. dxc5 {[%emt 0:00:08]} e6 {[%emt 0:00:22]} 5. Nf3 {[%emt 0:04:11]} Bxc5 {[%emt 0:00:21]} 6. Be2 {[%emt 0:00:37] B12: Caro-Kann: Advance Variation.} Nc6 {[%emt 0:03:32]} 7. O-O {[%emt 0:01:24]} Nge7 {[%emt 0:05:33]} 8. c4 {[%emt 0:12:23] The position is equal.} O-O {[%emt 0:07:17] [#]} 9. cxd5 $146 {[%emt 0:11:43]} ({Predecessor:} 9. Nc3 dxc4 10. Bxc4 Ng6 11. Qxd8 Rxd8 12. Bg5 Rf8 13. Rfe1 h6 14. Bd2 Nd4 15. Na4 Nxf3+ 16. gxf3 {½-½ (61) Fernandez,A (2065)-Herrero,L (2210) Mar del Plata 2001}) 9... Qxd5 {[%emt 0:04:42]} 10. Bf4 {[%emt 0:03:07]} Bd4 {[%emt 0:17:15]} 11. Nc3 {[%emt 0:13:03]} Bxc3 {[%emt 0:00:13]} 12. bxc3 {[%emt 0:00:02]} Qe4 {[%emt 0:11:30] Against Qc2} 13. g3 {[%emt 0:29:31]} (13. Bg3 $5 {[%cal Re2d3]}) 13... Rd8 {[%emt 0:04:49] Against Bd3} 14. Nd2 {[%emt 0:00:00]} Qg6 {[%emt 0:02:05]} 15. Bf3 {[%emt 0:00:53]} Nd5 {[%emt 0:04:40]} 16. Be4 {[%emt 0:01:00]} f5 {[%emt 0:00:55]} (16... Nxc3 17. Bxg6 Nxd1 18. Bxf7+ $1 Kxf7 19. Rfxd1 $14) 17. exf6 $1 {[%emt 0:00:09]} Qxf6 {[%emt 0:00:11]} 18. Bxd5 {[%emt 0:02:24]} (18. Qh5 Nxf4 19. gxf4 g6 $17) 18... exd5 {[%emt 0:00:45]} 19. Qb3 {[%emt 0:02:29]} b6 {[%emt 0:02:38]} 20. Rfe1 {[%emt 0:00:21]} Bg4 {[%emt 0:02:17]} 21. Kg2 {[%emt 0:07:12]} h6 {[%emt 0:01:02]} 22. f3 {[%emt 0:00:42]} Bf5 {[%emt 0:01:33]} 23. Rad1 {[%emt 0:02:00]} Kh8 {[%emt 0:00:10]} 24. Nf1 {[%emt 0:00:23]} Be6 {[%emt 0:04:39]} 25. Qa3 {[%emt 0:01:58]} Rac8 {[%emt 0:01:04]} 26. Rd2 {[%emt 0:02:13]} Bg8 {[%emt 0:04:16]} 27. Ne3 {[%emt 0:00:19]} Be6 {[%emt 0:00:48] Strongly threatening ...g5.} 28. Nc2 {[%emt 0:01:09]} Na5 {[%emt 0:02:12] aiming for ...Nc4.} 29. Be5 {[%emt 0:00:23]} Qf7 {[%emt 0:02:04]} 30. Rde2 {[%emt 0:01:43][%cal Oe5g7] Threatens to win with Bxg7+!} Bf5 {[%emt 0:01:06]} (30... Nc4 $11 31. Qb4 (31. Qc1 Nxe5 32. Rxe5 Rxc3 $17) 31... a5) 31. Nd4 {[%emt 0:00:15]} ({Better is} 31. Bd4 $1 $14 Nc6 32. Re7) 31... Bd3 $11 {[%emt 0:06:01]} 32. Rf2 {[%emt 0:01:14]} Re8 {[%emt 0:00:43] White must now prevent ...Nc4.} 33. Qc1 $1 {[%emt 0:01:08]} Kh7 {[%emt 0:00:12]} 34. Qd1 {[%emt 0:01:18]} Qg6 {[%emt 0:01:18]} (34... Rxc3 35. Ne6 $1 Ra3 36. Bb2 $1 Rxe6 37. Rxe6 (37. Bxa3 Rxe1 38. Qxe1 Kg8 $16) 37... Qxe6 38. Bxa3 $16) 35. h4 {[%emt 0:00:03][%cal Oh4h5] And now h5! would win.} h5 {[%emt 0:00:24]} ({Don't play} 35... Rxc3 36. h5 Qf7 37. Ne6 $1 $16) 36. Bf4 {[%emt 0:00:44]} Nc4 {[%emt 0:00:54]} 37. Ne6 {[%emt 0:00:41]} Rxe6 {[%emt 0:02:06]} 38. Rxe6 {[%emt 0:00:01]} Qxe6 {[%emt 0:00:02]} 39. Qxd3+ {[%emt 0:00:01]} Kg8 {[%emt 0:00:02]} 40. Re2 {[%emt 0:00:08]} Qf7 {[%emt 0:00:10]} 41. Bg5 {[%emt 0:00:27] Hoping for Re7.} Rc7 {[%emt 0:00:52] Against Re7} 42. Qd4 {[%emt 0:01:01]} Rd7 {[%emt 0:00:11]} (42... Kh7 {feels hotter.} 43. Kf2 Rd7 44. g4 hxg4 45. Qxg4 Nd6) 43. g4 {[%emt 0:00:33]} hxg4 {[%emt 0:01:30]} 44. Qxg4 {[%emt 0:00:01]} Nd6 {[%emt 0:02:34]} 45. a4 {[%emt 0:00:51][%cal Og5f6]} (45. Bf6 {is more complex.} Kf8 46. Bd4 Re7 47. Rxe7 Qxe7 48. h5) 45... Qf5 $2 {[%emt 0:02:15][%mdl 8192] [#] Against Bf6} (45... Rc7 $11) 46. Qxf5 $2 {[%emt 0:01:13]} (46. Re8+ $1 $18 {[%mdl 512]} Kf7 (46... Nxe8 47. Qxf5) 47. Qh5+ g6 {[#]} 48. Re7+ $1 {[%mdl 512]} Rxe7 49. Qh7+ Kf8 50. Qxe7+ Kg8 51. Qxd6) 46... Nxf5 $18 {[%emt 0:00:02][%mdl 4096] Endgame KRB-KRN} 47. Re5 {[%emt 0:00:04]} g6 {[%emt 0:00:10]} 48. h5 {[%emt 0:00:37]} Kh7 {[%emt 0:01:08]} 49. f4 {[%emt 0:01:21]} Rc7 {[%emt 0:02:31]} 50. Kf2 {[%emt 0:00:19]} d4 {[%emt 0:01:24]} 51. cxd4 {[%emt 0:00:07]} Nxd4 {[%emt 0:00:13]} 52. Rd5 {[%emt 0:00:46]} Nf5 {[%emt 0:00:45]} 53. a5 {[%emt 0:00:52]} bxa5 {[%emt 0:01:07]} 54. Rxa5 {[%emt 0:01:11]} Rb7 {[%emt 0:00:28]} 55. hxg6+ {[%emt 0:00:00]} Kxg6 {[%emt 0:00:02]} 56. Ke2 {[%emt 0:00:10]} Rd7 {[%emt 0:01:03]} 57. Kf3 {[%emt 0:00:08]} Rd3+ {[%emt 0:00:32]} 58. Ke4 {[%emt 0:00:41]} Re3+ {[%emt 0:00:02]} 59. Kd5 {[%emt 0:00:01]} Rd3+ {[%emt 0:00:28]} 60. Kc6 {[%emt 0:00:39]} Nd4+ {[%emt 0:01:03]} 61. Kb7 {[%emt 0:01:04]} Ne6 {[%emt 0:00:46]} 62. f5+ $2 {[%emt 0:00:35][%mdl 8192]} (62. Bh4 $11) 62... Kxg5 {[%emt 0:00:02]} 63. fxe6+ {[%emt 0:00:04]} Kf6 {[%emt 0:00:09] Mate.} 64. Ra6 {[%emt 0:00:17]} Re3 {[%emt 0:00:12]} 65. Kxa7 {[%emt 0:00:05]} Rxe6 {[%emt 0:00:04]} 66. Rxe6+ {[%emt 0:00:02]} Kxe6 {[%emt 0:00:01][%mdl 32768] What a bad dream for White.  Weighted Error Value: White=0.16 (very precise) /Black=0.05 (flawless) . An unexpected result.} 1/2-1/2

[Event "1st Semana Santa Torrevieja 2022"]
[Site "Torrevieja Alicante"]
[Date "2022.04.15"]
[Round "5.9"]
[White "Granero Roca, Antonio"]
[Black "Sochacki, Christophe"]
[Result "1/2-1/2"]
[ECO "E61"]
[WhiteElo "2356"]
[BlackElo "2485"]
[Annotator "TA"]
[PlyCount "166"]
[EventDate "2022.04.12"]
[EventType "swiss"]
[EventCountry "ESP"]
[SourceTitle "playchess.com"]
[Source "ChessBase"]
[SourceQuality "1"]
[TimeControl "5400+30"]

{[%evp 16,166,23,13,20,16,12,12,11,11,9,5,25,16,57,29,25,20,17,8,46,28,37,37,32,38,52,-100,3,-55,-52,-62,-46,-45,-39,-55,-42,-89,-79,-87,-72,-72,-72,-79,-72,-89,-46,-76,-56,-131,-103,-99,-96,-73,-66,-66,-7,-4,0,-42,-18,-8,-8,-18,-30,-18,-8,-8,-8,-8,-9,-14,-31,-18,-10,-35,0,0,0,-33,-29,-48,-40,-51,-20,-27,0,0,0,0,0,0,14,0,18,11,11,12,19,12,18,16,32,32,67,16,25,16,20,0,27,27,23,22,47,8,8,8,8,8,8,8,8,8,8,8,8,8,8,8,8,8,8,8,11,11,11,11,11,8,11,8,11,8,8,8,8,8,8,8,8,8,8]} 1. d4 {[%emt 0:00:30]} Nf6 {[%emt 0:05:25]} 2. Nf3 {[%emt 0:00:08]} g6 {[%emt 0:00:07]} 3. e3 {[%emt 0:00:42]} Bg7 {[%emt 0:00:24]} 4. Be2 {[%emt 0:00:04]} O-O {[%emt 0:00:18]} 5. O-O {[%emt 0:00:04]} d6 {[%emt 0:00:10]} 6. c4 {[%emt 0:00:06]} Nbd7 {[%emt 0:00:14]} 7. Nc3 {[%emt 0:00:07]} e5 {[%emt 0:00:05]} 8. Qc2 {[%emt 0:00:51]} Re8 {[%emt 0:01:53]} 9. Rd1 {[%emt 0:02:03]} exd4 {[%emt 0:03:05] E61: King's Indian: Early deviations for White, including Smyslov System.} 10. exd4 {[%emt 0:01:33]} Nb6 {[%emt 0:03:10]} 11. h3 {[%emt 0:04:39]} Bf5 {[%emt 0:12:21]} 12. Bd3 {[%emt 0:01:06]} Bxd3 {[%emt 0:01:19]} 13. Qxd3 {[%emt 0:00:02] [#]} Qd7 $146 {[%emt 0:01:30]} ({Predecessor:} 13... d5 14. c5 Nbd7 15. Bf4 c6 16. Re1 Nf8 17. b4 a6 18. Rxe8 Nxe8 19. Re1 Ne6 20. Bg3 Qf6 21. Ne2 Ng5 22. Nd2 {½-½ (22) Jeute,V (2214)-Mileto,G (2219) ICCF email 2018}) 14. b3 {[%emt 0:01:46]} Re7 {[%emt 0:07:47]} 15. Be3 {[%emt 0:01:49]} Rae8 {[%emt 0:01:03]} 16. Rac1 {[%emt 0:00:22]} c6 {[%emt 0:14:55]} 17. d5 {[%emt 0:03:26]} c5 {[%emt 0:04:56]} 18. a3 {[%emt 0:00:21]} Ne4 {[%emt 0:01:02]} 19. Nxe4 {[%emt 0:07:02]} Rxe4 {[%emt 0:00:50]} 20. Rc2 {[%emt 0:00:12]} Qf5 {[%emt 0:15:04]} 21. b4 $2 {[%emt 0:00:43] [#]} (21. Kf1 $14 {keeps the upper hand.}) 21... Nd7 {[%emt 0:00:03]} ({Black should try} 21... Rxc4 $1 $17 22. Qxf5 gxf5 23. Rxc4 Nxc4 24. bxc5 Nxe3 25. fxe3 dxc5) 22. Nh2 {[%emt 0:23:58]} (22. Rcc1 $11) 22... Bd4 $15 {[%emt 0:10:52][%cal Re4e3]} 23. Nf1 {[%emt 0:00:07] Ng3 is the strong threat.} Bxe3 $1 {[%emt 0:06:32]} 24. Nxe3 {[%emt 0:00:24]} Qf4 {[%emt 0:00:08]} 25. Qb3 {[%emt 0:03:03]} a6 {[%emt 0:00:11]} 26. bxc5 {[%emt 0:01:03]} (26. Rcc1 $15) 26... Nxc5 $17 {[%emt 0:00:10]} 27. Qc3 {[%emt 0:00:35]} h5 {[%emt 0:00:16] Against Ng4} 28. Rb1 {[%emt 0:01:06]} R8e7 {[%emt 0:00:42]} 29. Re2 {[%emt 0:02:41]} R4e5 {[%emt 0:00:47]} 30. Rf1 {[%emt 0:03:17]} g5 {[%emt 0:00:57]} 31. Qa5 {[%emt 0:09:28] And now Qd8+ would win.} Re8 {[%emt 0:02:15] Inhibits Qd8.} (31... g4 $5 {[%cal Rg4h3]} 32. Qd8+ Kg7 $15) 32. Qc7 {[%emt 0:00:58]} (32. Qd2 $15) 32... Qf6 {[%emt 0:01:49]} 33. Qb6 {[%emt 0:06:00] [#]} Qg6 $1 {[%emt 0:00:29]} 34. Qb1 {[%emt 0:00:22]} Re4 {[%emt 0:00:55]} 35. Ree1 {[%emt 0:04:55]} Qf6 {[%emt 0:01:15]} (35... Kf8 $15) 36. Qd1 $11 {[%emt 0:00:36]} Qg6 {[%emt 0:00:54]} 37. Nc2 {[%emt 0:04:46]} R8e5 {[%emt 0:03:17]} 38. Rxe4 {[%emt 0:05:00]} Rxe4 {[%emt 0:00:13]} 39. Re1 $1 {[%emt 0:03:06]} Rxe1+ {[%emt 0:00:43]} 40. Nxe1 {[%emt 0:00:03][%cal Bc2e1,Be1f3,Bf3d2][%mdl 32]} Qe4 {[%emt 0:01:09]} 41. Nf3 {[%emt 0:00:37]} g4 {[%emt 0:00:18]} 42. hxg4 {[%emt 0:00:13]} hxg4 {[%emt 0:00:04]} 43. Nd2 {[%emt 0:00:05]} Qd4 {[%emt 0:01:03]} 44. Qe2 {[%emt 0:00:11]} g3 {[%emt 0:00:30]} 45. Qe3 {[%emt 0:06:26]} gxf2+ {[%emt 0:01:03]} 46. Kxf2 {[%emt 0:01:08]} Nd3+ {[%emt 0:00:30]} 47. Kf3 {[%emt 0:00:17]} (47. Ke2 $5 {[%cal Re3d4]} Nf4+ 48. Kf3 Qxe3+ 49. Kxe3 Nxg2+ 50. Kf2 $11) 47... Ne5+ {[%emt 0:00:12]} 48. Ke2 {[%emt 0:00:43]} Qg4+ {[%emt 0:00:03]} 49. Kf2 {[%emt 0:00:26]} Kf8 {[%emt 0:01:09]} (49... Nxc4 50. Nxc4 Qxc4 51. Qg3+ Kh7 52. Qh2+ (52. Qxd6 Qe4 $11) 52... Kg7 53. Qxd6 $11) 50. c5 {[%emt 0:01:53]} Qh4+ {[%emt 0:00:20]} 51. Kg1 $1 {[%emt 0:00:15]} Ng4 {[%emt 0:00:50]} 52. Qf4 {[%emt 0:01:01]} dxc5 {[%emt 0:00:13]} 53. Nf1 {[%emt 0:00:49]} Ke7 {[%emt 0:00:54]} 54. Qc7+ {[%emt 0:00:31]} Ke8 {[%emt 0:00:25]} 55. Qc8+ {[%emt 0:00:30]} Ke7 {[%emt 0:00:05]} 56. Qxb7+ {[%emt 0:00:27]} Kd6 {[%emt 0:00:49]} 57. Qc6+ {[%emt 0:00:07]} Ke5 $1 {[%emt 0:00:12]} 58. Qxc5 {[%emt 0:00:04] Black must now prevent g3.} Nf6 {[%emt 0:00:49]} 59. Qc7+ {[%emt 0:03:55]} Kxd5 {[%emt 0:00:44]} 60. Ne3+ {[%emt 0:00:06]} (60. Qxf7+ $14 Kd6 61. Qf8+ Kd7 62. Qc5) 60... Ke6 {[%emt 0:00:12]} 61. Qc6+ {[%emt 0:01:01]} Ke5 {[%emt 0:00:04]} 62. Qc7+ {[%emt 0:00:49]} Ke6 {[%emt 0:00:04]} 63. Qb6+ {[%emt 0:00:03]} Kd7 {[%emt 0:00:44]} 64. Qb7+ {[%emt 0:00:25]} Kd8 {[%emt 0:00:30]} 65. Qxa6 {[%emt 0:00:55] Black should prevent Qa5+.} Qd4 {[%emt 0:00:23] The position is equal.} ({But not} 65... Qe1+ 66. Nf1 Qe5 67. Qa8+ Ke7 68. Qa7+ Kd8 69. Ne3 $16 (69. Qxf7 Qd4+ 70. Kh2 Qh4+ 71. Kg1 Qd4+ 72. Kh2 Qh4+ 73. Kg1 Qd4+ $11)) 66. Qa5+ {[%emt 0:00:30]} Kd7 {[%emt 0:00:34]} 67. Qb5+ {[%emt 0:00:19]} Kd8 {[%emt 0:00:20]} 68. Qb8+ {[%emt 0:00:29]} Kd7 {[%emt 0:00:08]} 69. Qb3 {[%emt 0:00:11]} ({Resist} 69. Qb7+ Kd6 70. Qb8+ Kd7 71. Qb5+ (71. Qb7+ Kd6 $14) 71... Kd6 72. Qb8+ Kd7 $14) 69... Ke8 {[%emt 0:01:03]} 70. Kf1 {[%emt 0:00:15]} Ne4 {[%emt 0:00:41] ( -> ...Nd2+)} 71. Qb5+ {[%emt 0:00:30]} Kd8 {[%emt 0:00:59] Strongly threatening ...Qa1+.} 72. Qd5+ {[%emt 0:00:15]} (72. Qb8+ {seems wilder.} Kd7 73. Qb7+ Kd8 74. Qd5+) 72... Qxd5 {[%emt 0:00:04]} 73. Nxd5 {[%emt 0:00:03][%mdl 4096] Endgame KN-KN} Kd7 {[%emt 0:00:10]} 74. Ke2 {[%emt 0:00:18]} Kd6 {[%emt 0:00:25]} 75. Nb4 {[%emt 0:00:09]} Kc5 {[%emt 0:00:47]} 76. Ke3 {[%emt 0:00:08]} Nd6 {[%emt 0:00:59]} 77. Kf4 {[%emt 0:00:08]} Kc4 {[%emt 0:00:51]} 78. Nc6 {[%emt 0:00:24]} Kb3 {[%emt 0:00:23]} 79. Ke5 {[%emt 0:00:28]} Nc4+ $1 {[%emt 0:00:14]} 80. Kf6 {[%emt 0:00:10]} Ne3 {[%emt 0:00:11]} 81. g3 {[%emt 0:00:13]} Nf1 {[%emt 0:00:32]} 82. Nd4+ {[%emt 0:00:42]} Kc4 {[%emt 0:00:07]} 83. Nf5 {[%emt 0:00:08]} Nxg3 {[%emt 0:00:08] Weighted Error Value: White=0.16 (very precise) /Black=0.14 (very precise)} 1/2-1/2

[Event "1st Semana Santa Torrevieja 2022"]
[Site "Torrevieja Alicante"]
[Date "2022.04.15"]
[Round "5.10"]
[White "Cabrera, Alexis"]
[Black "Alonso Garcia, Aaron"]
[Result "0-1"]
[ECO "A31"]
[WhiteElo "2482"]
[BlackElo "2374"]
[Annotator "TA"]
[PlyCount "156"]
[EventDate "2022.04.12"]
[EventType "swiss"]
[EventCountry "ESP"]
[SourceTitle "playchess.com"]
[Source "ChessBase"]
[SourceQuality "1"]
[TimeControl "5400+30"]

{[%evp 33,156,16,19,0,26,1,45,18,52,30,40,-8,52,24,31,33,33,33,34,37,53,31,55,9,9,8,12,8,7,3,27,28,27,1,2,2,2,-25,-25,-28,-22,-27,-2,-6,0,0,-10,-31,11,0,0,-62,-54,-55,0,0,0,0,0,0,14,14,20,19,19,22,18,0,26,26,26,26,26,26,29,27,13,10,10,10,31,0,49,0,91,91,91,91,91,91,91,91,91,91,91,91,91,91,91,91,91,91,371,403,711,0,0,0,0,0,0,-921,-845,-4270,-2676,-12799,-12798,-12802,-12437,-29959,-11988,-8918,-5539,-29966,-29965]} 1. e4 {[%emt 0:00:14]} c5 {[%emt 0:00:24]} 2. Nf3 {[%emt 0:00:12][%cal Bg1f3,Bf3d4,Bd4b5][%mdl 32]} e6 {[%emt 0:00:51]} 3. d4 {[%emt 0:00:22]} cxd4 {[%emt 0:00:09]} 4. Nxd4 {[%emt 0:00:03]} Nc6 {[%emt 0:00:10]} 5. Nb5 {[%emt 0:00:04]} d6 {[%emt 0:00:57]} 6. c4 {[%emt 0:00:50]} Nf6 {[%emt 0:00:31]} 7. N1c3 {[%emt 0:00:28]} a6 {[%emt 0:00:37]} 8. Na3 {[%emt 0:00:05]} b6 {[%emt 0:00:14]} 9. Be2 {[%emt 0:00:04]} Bb7 {[%emt 0:00:05]} 10. O-O {[%emt 0:00:05]} Nb8 {[%emt 0:01:34]} 11. f3 {[%emt 0:03:04]} Nbd7 {[%emt 0:02:10]} 12. Be3 {[%emt 0:00:05]} Be7 {[%emt 0:00:07]} 13. Qd2 {[%emt 0:02:02]} O-O {[%emt 0:00:52]} 14. Rfd1 {[%emt 0:00:08]} Qc7 {[%emt 0:02:26]} 15. Rac1 {[%emt 0:00:30]} Rac8 {[%emt 0:00:06]} 16. Bf1 {[%emt 0:00:05]} Rfe8 {[%emt 0:06:35]} 17. Qf2 {[%emt 0:08:33]} Qb8 {[%emt 0:04:16]} 18. Nab1 {[%emt 0:13:20] A31: Symmetrical English: 2 Nf3 Nf6 3 d4.} Bd8 {[%emt 0:12:13] [#]} 19. Nd2 $146 {[%emt 0:18:03]} ({Predecessor:} 19. b3 Bc7 20. g3 Qa8 21. Qd2 Ne5 22. Bg2 Bc6 23. a4 Ned7 24. b4 Bb7 25. Bd4 {1-0 (48) Olivier,J (2364)-Ducret,T (2199) France 2005}) 19... Bc7 {[%emt 0:13:01]} 20. g3 {[%emt 0:02:14] White is slightly better.} Qa8 {[%emt 0:09:56]} 21. Bh3 {[%emt 0:11:07]} Bb8 {[%emt 0:09:27][%cal Ob6b5]} 22. b4 {[%emt 0:13:23]} (22. Bxb6 $2 Nxb6 23. Qe2 (23. Qxb6 $2 Ba7 $19) 23... Ba7 $19) (22. a3 $14) 22... Rc7 {[%emt 0:11:59]} (22... b5 $11) 23. Bd4 {[%emt 0:03:56]} (23. Bxb6 $2 Nxb6 24. c5 (24. Qxb6 $2 Ba7 $19) 24... Nbd7 $19) 23... Ne5 {[%emt 0:05:06]} (23... b5 {is interesting.} 24. Bf1 Rec8 25. a4 bxc4 26. b5 a5) 24. Bxe5 {[%emt 0:08:40]} dxe5 {[%emt 0:00:17]} 25. Bf1 {[%emt 0:00:05]} (25. Qxb6 $2 Ba7 26. Qxa7 Qxa7+ $19) 25... Ba7 {[%emt 0:01:49]} 26. Nb3 {[%emt 0:01:44]} Rd8 {[%emt 0:03:23]} 27. Kg2 {[%emt 0:00:39]} (27. a4 $5 {[%cal Rd1d8]}) 27... Rcd7 {[%emt 0:01:18]} 28. Qc2 {[%emt 0:02:26]} (28. Rxd7 $14 {is more appropriate.} Nxd7 29. Qe3) 28... g5 $11 {[%emt 0:02:00]} 29. h3 {[%emt 0:01:53]} h5 {[%emt 0:00:46]} 30. g4 {[%emt 0:00:37]} hxg4 {[%emt 0:00:53]} 31. hxg4 {[%emt 0:00:04]} Nh7 {[%emt 0:00:48][%cal Bf6h7,Bh7f8,Bf8g6][%mdl 32]} 32. Rxd7 {[%emt 0:00:19]} Rxd7 {[%emt 0:00:01]} 33. Rd1 {[%emt 0:00:11]} (33. Na4 $5 {[%cal Rc4c5]}) 33... Qd8 {[%emt 0:00:45]} 34. Rxd7 {[%emt 0:07:14]} Qxd7 {[%emt 0:00:01]} 35. Bd3 {[%emt 0:01:01]} Nf8 {[%emt 0:00:12]} 36. Ne2 {[%emt 0:00:17]} Ng6 {[%emt 0:01:07]} 37. c5 {[%emt 0:00:08]} Qa4 {[%emt 0:05:35]} 38. Qd2 {[%emt 0:02:21]} bxc5 {[%emt 0:01:23]} 39. bxc5 {[%emt 0:01:03]} Qd7 {[%emt 0:00:58][%cal Oa6a5]} 40. Qc3 {[%emt 0:00:25]} Bc6 {[%emt 0:01:39][%cal Oa6a5]} 41. Bc4 {[%emt 0:01:22]} Ba4 {[%emt 0:01:09]} 42. Qd3 {[%emt 0:00:41]} ({White should try} 42. Qa5 $1 $11) 42... Qe7 $15 {[%emt 0:01:47]} 43. Qd6 {[%emt 0:01:02]} Qf6 {[%emt 0:00:33]} (43... Bxb3 $15 44. Qxe7 Nxe7 45. Bxb3 (45. axb3 a5 $17) 45... Bxc5) 44. Nd2 $11 {[%emt 0:00:05]} Qe7 {[%emt 0:01:26]} 45. Qxe7 {[%emt 0:00:36]} (45. Qxa6 $2 Qxc5 $1 46. Kh3 Qf2 $1 47. Qxa7 Qxa7 $19) 45... Nxe7 {[%emt 0:00:01]} 46. Nc3 {[%emt 0:00:25]} Bd7 {[%emt 0:01:18]} 47. Nb3 {[%emt 0:00:09]} Bc8 {[%emt 0:00:21]} 48. Na4 {[%emt 0:00:05]} Nc6 {[%emt 0:00:24]} 49. Nb6 {[%emt 0:00:47]} Bb7 {[%emt 0:00:31]} 50. Nd7 {[%emt 0:00:30]} Kg7 {[%emt 0:00:20]} 51. Kf2 {[%emt 0:01:10]} Bc8 {[%emt 0:00:07]} 52. Nb6 {[%emt 0:00:07]} Bb7 {[%emt 0:00:17]} 53. Ke3 {[%emt 0:00:24]} Kf6 {[%emt 0:00:15]} 54. Kd2 {[%emt 0:01:02]} Ke7 {[%emt 0:00:10]} 55. Kc3 {[%emt 0:00:13]} Kd8 {[%emt 0:01:57]} 56. Bd3 {[%emt 0:00:05]} f6 {[%emt 0:00:40]} 57. Bc4 {[%emt 0:00:23]} Ke7 {[%emt 0:00:16]} (57... Kc7 $11 {might be stronger.}) 58. Bd3 {[%emt 0:00:20]} (58. Kc2 $14 {is superior.}) 58... Bxb6 {[%emt 0:00:21]} (58... Kd8 $1 $11 {keeps the balance.}) 59. cxb6 {[%emt 0:00:04][%mdl 4096] Endgame Hoping for Nc5. KBN-KBN} Kd6 {[%emt 0:00:02] Against Nc5} 60. a4 {[%emt 0:00:16]} Bc8 {[%emt 0:00:19]} 61. Kc4 {[%emt 0:00:21]} Bb7 {[%emt 0:00:40]} 62. Be2 {[%emt 0:00:39]} ({But not} 62. Nc5 $6 Na5+ 63. Kb4 Nc6+ 64. Kc4 Na5+ 65. Kb4 Nc6+ 66. Kc4 $11) 62... Bc8 {[%emt 0:00:15]} 63. Bd1 {[%emt 0:00:05]} ({Reject} 63. Nc5 $6 Na5+ 64. Kb4 Nc6+ 65. Kc4 Na5+ 66. Kb4 Nc6+ 67. Kc4 $11) 63... Bb7 {[%emt 0:00:24]} 64. Kc3 {[%emt 0:01:40]} ({Much weaker is} 64. Nc5 $6 Na5+ 65. Kb4 Nc6+ 66. Kc4 Na5+ 67. Kb4 Nc6+ 68. Kc4 $11) 64... Bc8 {[%emt 0:01:32]} 65. Be2 {[%emt 0:00:05]} Bb7 {[%emt 0:00:18]} 66. Bf1 {[%emt 0:00:04]} Bc8 {[%emt 0:00:18]} 67. Bc4 {[%emt 0:00:04]} Bb7 $2 {[%emt 0:00:30][%mdl 8192] [#]} (67... Nd8 $16) 68. Bxe6 $1 $18 {[%emt 0:00:03]} Nd4 {[%emt 0:01:01]} (68... a5 $142 69. Bc4 Bc8) 69. Bc4 $2 {[%emt 0:03:11]} (69. Bd5 $1 $18 {[%cal Rd5b7]} Nc6 70. Kc4) 69... Nxb3 $11 {[%emt 0:00:34]} (69... Nxf3 $2 70. Bd5 Bc8 71. b7 Bxb7 72. Bxb7 $18) 70. Kxb3 {[%emt 0:00:30] Black must now prevent a5. KB-KB} a5 {[%emt 0:00:20]} 71. Bd5 {[%emt 0:00:23]} Ba6 $1 {[%emt 0:00:17] And now ...Be2 would win.} 72. Kc3 $2 {[%emt 0:00:25][%mdl 8192]} (72. Bc4 $11 Bb7 73. Bd5) 72... Be2 $19 {[%emt 0:00:33]} 73. Be6 {[%emt 0:01:02]} Kc6 {[%emt 0:00:25]} (73... Kxe6 $2 74. b7 Bxf3 75. b8=Q $18) 74. Kd2 {[%emt 0:00:36]} Bxf3 {[%emt 0:00:15]} 75. Bf5 {[%emt 0:00:25]} Kxb6 {[%emt 0:00:06]} 76. Kc3 {[%emt 0:00:29]} Kc5 {[%emt 0:00:04] ( -> ...Bg2)} 77. Kd3 {[%emt 0:00:05]} Kb4 {[%emt 0:00:04] ...Bd1 is the strong threat.} 78. Bd7 {[%emt 0:00:08]} Bd1 {[%emt 0:02:59] Weighted Error Value: White=0.13 (very precise) /Black=0.15 (very precise)} 0-1

[Event "1st Semana Santa Torrevieja 2022"]
[Site "Torrevieja Alicante"]
[Date "2022.04.15"]
[Round "5.11"]
[White "Vrolijk, Liam"]
[Black "Efimovich, Sergey"]
[Result "1/2-1/2"]
[ECO "E18"]
[WhiteElo "2480"]
[BlackElo "2318"]
[Annotator "TA"]
[PlyCount "38"]
[EventDate "2022.04.12"]
[EventType "swiss"]
[EventCountry "ESP"]
[SourceTitle "playchess.com"]
[Source "ChessBase"]
[SourceQuality "1"]
[TimeControl "5400+30"]

{[%evp 15,38,20,77,46,94,94,98,31,90,77,100,60,72,45,52,55,51,8,15,0,0,0,0,0,0]} 1. d4 {[%emt 0:00:03]} d5 {[%emt 0:00:04]} 2. c4 {[%emt 0:00:05]} e6 {[%emt 0:00:04]} 3. Nf3 {[%emt 0:00:11]} Nf6 {[%emt 0:00:04]} 4. g3 {[%emt 0:00:06]} Be7 {[%emt 0:01:13]} 5. Bg2 {[%emt 0:00:12]} O-O {[%emt 0:00:10]} 6. Nc3 {[%emt 0:00:51]} b6 {[%emt 0:01:25]} 7. cxd5 {[%emt 0:02:28]} exd5 {[%emt 0:00:08]} 8. O-O {[%emt 0:00:11]} c5 {[%emt 0:01:05]} (8... Bb7 $11) 9. Bg5 {[%emt 0:11:16] E18: Queen's Indian: Old Main Line (4 g3 Bb7 5 Bg2 Be7 6 0-0 0-0 7 Nc3).} Bb7 {[%emt 0:00:16]} (9... Nbd7 $14 {deserves consideration.}) 10. dxc5 $16 {[%emt 0:06:36]} bxc5 {[%emt 0:01:03]} 11. Nh4 {[%emt 0:00:44] [#]} (11. Qb3 $16 Qc7 12. Bxf6 Bxf6 13. Nxd5 Bxd5 14. Qxd5) 11... Na6 $146 {[%emt 0:07:06]} (11... Bc6 $1 $14) ({Predecessor:} 11... Nbd7 12. Qb3 Bc6 13. Nf5 Rb8 14. Nxe7+ Qxe7 15. Qa3 Qe6 16. Bxf6 gxf6 17. e3 d4 18. Bxc6 Qxc6 19. exd4 cxd4 {0-1 (27) Gaberc,J-Paskulj,K Yugoslavia 1983}) 12. Nf5 {[%emt 0:02:38]} Nc7 {[%emt 0:00:21]} 13. Bf4 {[%emt 0:16:15] 0x0.001e7f237ef4dp-1022s more active pieces. The black rooks are badly placed.} Qd7 {[%emt 0:09:48]} 14. Nxe7+ {[%emt 0:14:25]} Qxe7 {[%emt 0:00:06]} 15. Qb3 {[%emt 0:00:59]} Bc6 {[%emt 0:17:23]} 16. Bxc7 {[%emt 0:03:46]} (16. Rfd1 $5 {[%cal Rf4c7]}) 16... Qxc7 {[%emt 0:00:05] The position is equal.} 17. Nxd5 {[%emt 0:00:31]} Bxd5 {[%emt 0:01:03]} 18. Bxd5 {[%emt 0:00:14]} Rab8 {[%emt 0:00:21]} 19. Qf3 {[%emt 0:00:08]} Nxd5 {[%emt 0:05:15] Weighted Error Value: White=0.23 (precise) /Black=0.25 (precise)} 1/2-1/2